bitfinex-derivatives/quotes_BTCF0:USTF0_20250320
["timestamp","ask_amount","ask_price","bid_price","bid_amount"]
[1742455548793,0.56360655,85858.0,85857.0,0.0637]
[1742455549786,0.55352034,85858.0,85857.0,0.0637]
[1742455549986,0.56357,85858.0,85857.0,0.0637]
[1742455550388,0.56357,85858.0,85857.0,0.1801704]
[1742455553011,0.56357,85858.0,85857.0,0.0637]
[1742455553206,0.56357,85858.0,85857.0,0.1801704]
[1742455556109,0.56357,85858.0,85857.0,0.0637]
[1742455556706,0.20277,85858.0,85857.0,0.0637]
[1742455556901,0.56357,85858.0,85857.0,0.0637]
[1742455557497,0.20277,85858.0,85857.0,0.0637]
[1742455557811,0.56357,85858.0,85857.0,0.0637]
[1742455560512,0.56357,85858.0,85857.0,0.1801704]
[1742455561508,0.56361065,85858.0,85857.0,0.1801704]
[1742455562816,0.56361065,85858.0,85857.0,0.0637]
[1742455563411,0.55352034,85858.0,85857.0,0.0637]
[1742455564308,0.76317468,85858.0,85857.0,0.1801704]
[1742455564509,0.77292542,85858.0,85857.0,0.1801704]
[1742455566216,0.78265894,85858.0,85857.0,0.0637]
[1742455566619,0.77292542,85858.0,85857.0,0.0637]
[1742455566815,0.77292542,85858.0,85857.0,0.1801704]
[1742455567217,0.7826596,85858.0,85857.0,0.1801704]
[1742455567710,0.77292542,85858.0,85857.0,0.1801704]
[1742455567912,0.68342774,85858.0,85857.0,0.1801704]
[1742455568121,0.14165874,85858.0,85857.0,0.1801704]
[1742455568419,0.25812774,85858.0,85857.0,0.1801704]
[1742455570821,0.1319074,85858.0,85857.0,0.1801704]
[1742455571407,0.01175074,85858.0,85857.0,0.1801704]
[1742455573413,0.40890001,85870.0,85869.0,0.1164541]
[1742455573626,0.4083,85870.0,85869.0,0.1164541]
[1742455574122,0.4083,85870.0,85869.0,1.6164541]
[1742455574322,0.37251002,85870.0,85869.0,1.6164541]
[1742455574517,0.37251002,85870.0,85869.0,1.6800541]
[1742455577519,0.37251002,85870.0,85869.0,0.1800541]
[1742455577724,4e-05,85873.0,85872.0,0.11645]
[1742455578513,4e-05,85873.0,85872.0,0.17985]
[1742455579729,4e-05,85873.0,85872.0,0.18085]
[1742455582826,0.0616,85881.0,85880.0,0.1164392]
[1742455583322,0.1780378,85881.0,85880.0,0.1164392]
[1742455583520,0.2106378,85881.0,85880.0,0.1164392]
[1742455585129,0.2106378,85881.0,85880.0,0.14483503]
[1742455590221,0.2106378,85881.0,85880.0,0.02839583]
[1742455590428,0.1164405,85879.0,85878.0,0.1164413]
[1742455590932,0.1782405,85879.0,85878.0,0.1164413]
[1742455591728,0.1782405,85879.0,85878.0,0.14417209]
[1742455593533,0.1782405,85879.0,85878.0,0.02773079]
[1742455593733,0.1782405,85879.0,85878.0,0.1164419]
[1742455595037,0.1782405,85879.0,85878.0,0.17545344]
[1742455595238,0.1782405,85879.0,85878.0,0.05901154]
[1742455595426,0.1782405,85879.0,85878.0,0.02761154]
[1742455595631,0.1782405,85879.0,85878.0,0.1164419]
[1742455596537,0.1782405,85879.0,85878.0,0.1478419]
[1742455596940,0.1782405,85879.0,85878.0,0.1755933]
[1742455597127,0.5390405,85879.0,85878.0,0.1755933]
[1742455597330,0.5390405,85879.0,85878.0,0.0591514]
[1742455597635,0.5390405,85879.0,85878.0,0.0277514]
[1742455597831,0.5972608,85879.0,85878.0,0.1164419]
[1742455598633,0.1164432,85877.0,85876.0,0.0302]
[1742455598931,0.1164459,85875.0,85874.0,0.1164471]
[1742455599436,0.1474459,85875.0,85874.0,0.14422069]
[1742455600241,0.1780459,85875.0,85874.0,0.17572069]
[1742455600746,0.1780459,85875.0,85874.0,0.17672069]
[1742455601542,0.1780459,85875.0,85874.0,0.20732069]
[1742455611843,0.5388459,85875.0,85874.0,0.20732069]
[1742455616453,0.5388459,85875.0,85874.0,0.09087359]
[1742455616959,0.5388459,85875.0,85874.0,0.20732089]
[1742455617148,0.5388459,85875.0,85874.0,0.09087359]
[1742455617351,0.6388459,85875.0,85874.0,0.0631]
[1742455617551,0.1164636,85862.0,85861.0,0.0582722]
[1742455617861,0.1164636,85862.0,85861.0,0.19801066]
[1742455618050,0.1821636,85862.0,85861.0,0.19801066]
[1742455618958,0.1821636,85862.0,85861.0,0.37269896]
[1742455619159,0.1821636,85862.0,85861.0,0.37369896]
[1742455619546,0.1821636,85862.0,85861.0,0.26145896]
[1742455620860,0.35678692,85862.0,85861.0,0.14967006]
[1742455621053,0.35678692,85862.0,85861.0,0.09143846]
[1742455621251,0.45678692,85862.0,85861.0,0.02853846]
[1742455621452,0.35678692,85862.0,85861.0,0.02853846]
[1742455622461,0.35678692,85862.0,85861.0,0.08883846]
[1742455622861,0.35678692,85862.0,85861.0,0.20530336]
[1742455623364,0.71758692,85862.0,85861.0,0.20530336]
[1742455624471,0.5429636,85862.0,85861.0,0.14500336]
[1742455624869,0.5429636,85862.0,85861.0,0.20800336]
[1742455625571,0.5429636,85862.0,85861.0,0.09153846]
[1742455625770,0.5429636,85862.0,85861.0,0.20800336]
[1742455632866,0.5429636,85862.0,85861.0,0.09153846]
[1742455634357,0.6429636,85862.0,85861.0,0.09153846]
[1742455634771,0.5429636,85862.0,85861.0,0.09153846]
[1742455635476,0.5429636,85862.0,85861.0,0.20800336]
[1742455636672,0.5429636,85862.0,85861.0,0.09153846]
[1742455637875,0.6429636,85862.0,85861.0,0.09153846]
[1742455638874,0.5429636,85862.0,85861.0,0.09153846]
[1742455639072,0.5429636,85862.0,85861.0,0.20800336]
[1742455640775,0.5429636,85862.0,85861.0,0.09153846]
[1742455641980,0.6429636,85862.0,85861.0,0.09153846]
[1742455642479,0.5429636,85862.0,85861.0,0.09153846]
[1742455642869,0.5429636,85862.0,85861.0,0.20800336]
[1742455646983,0.5429636,85862.0,85861.0,0.09153846]
[1742455653878,0.65572261,85862.0,85861.0,0.09153846]
[1742455654988,0.65572261,85862.0,85861.0,0.20800336]
[1742455655188,0.65572261,85862.0,85861.0,0.09153846]
[1742455656991,0.65572261,85862.0,85861.0,0.20800336]
[1742455657489,0.65572261,85862.0,85861.0,0.23840336]
[1742455657881,0.65572261,85862.0,85861.0,0.09153846]
[1742455659785,0.65572261,85862.0,85861.0,0.02853846]
[1742455660376,0.65572261,85862.0,85861.0,0.06183846]
[1742455660587,0.0582338,85859.0,85852.0,4e-05]
[1742455660788,0.0582365,85855.0,85853.0,0.0321]
[1742455661089,0.5732744,85854.0,85853.0,0.0321]
[1742455661882,0.5732744,85854.0,85853.0,0.17291003]
[1742455662084,0.5732744,85854.0,85853.0,0.05643423]
[1742455662994,0.5742744,85854.0,85853.0,0.05643423]
[1742455663191,0.68703341,85854.0,85853.0,0.05643423]
[1742455663591,0.68803341,85854.0,85853.0,0.05643423]
[1742455665091,0.65733341,85854.0,85853.0,0.17291003]
[1742455665287,0.59203341,85854.0,85853.0,0.20421003]
[1742455665792,0.62493341,85854.0,85853.0,0.20421003]
[1742455665989,0.62493341,85854.0,85853.0,0.08773423]
[1742455666190,0.65773341,85854.0,85853.0,0.08773423]
[1742455666800,0.5449744,85854.0,85853.0,0.08773423]
[1742455671085,0.5449744,85854.0,85853.0,0.20421003]
[1742455671683,0.5449744,85854.0,85853.0,0.23441003]
[1742455675089,0.5449744,85854.0,85853.0,0.11793423]
[1742455675397,0.5449744,85854.0,85853.0,0.08663423]
[1742455676092,0.1841744,85854.0,85853.0,0.08663423]
[1742455676292,0.5449744,85854.0,85853.0,0.08663423]
[1742455677800,0.5449744,85854.0,85853.0,0.20311003]
[1742455678191,0.5449744,85854.0,85853.0,0.08663423]
[1742455678594,0.5449744,85854.0,85853.0,0.20311003]
[1742455680098,0.75443878,85854.0,85853.0,0.20311003]
[1742455682609,0.57226438,85854.0,85853.0,0.20311003]
[1742455683310,0.68873878,85854.0,85853.0,0.20311003]
[1742455683506,0.57226438,85854.0,85853.0,0.20311003]
[1742455684602,0.68873878,85854.0,85853.0,0.20311003]
[1742455685105,0.57226438,85854.0,85853.0,0.20311003]
[1742455685604,0.68873878,85854.0,85853.0,0.20311003]
[1742455686013,0.57226438,85854.0,85853.0,0.20311003]
[1742455687605,0.3628,85854.0,85853.0,0.20311003]
[1742455691694,0.3628,85854.0,85853.0,0.31535003]
[1742455693601,0.002,85854.0,85853.0,0.31535003]
[1742455693996,0.20946438,85863.0,85860.0,0.0582331]
[1742455694202,0.03201464,85864.0,85863.0,0.1164622]
[1742455694495,0.00021464,85864.0,85863.0,0.1785622]
[1742455694913,0.06497464,85864.0,85863.0,0.1785622]
[1742455695304,0.00017464,85864.0,85863.0,0.1785622]
[1742455698105,0.00017464,85864.0,85863.0,1.6785622]
[1742455698310,0.36084,85869.0,85866.0,0.0582291]
[1742455698511,0.36084,85869.0,85867.0,0.0634]
[1742455698710,0.3608,85869.0,85868.0,0.2286554]
[1742455699110,0.3608,85869.0,85868.0,0.2916554]
[1742455700319,0.3608,85869.0,85868.0,0.2926554]
[1742455700712,0.3933,85869.0,85868.0,0.2926554]
[1742455701422,0.3933,85869.0,85868.0,0.3231554]
[1742455711227,0.0325,85869.0,85868.0,0.3231554]
[1742455714519,0.0325,85869.0,85868.0,0.2926554]
[1742455718230,4e-05,85872.0,85871.0,0.1164514]
[1742455718421,4e-05,85872.0,85871.0,0.2131514]
[1742455718620,4e-05,85874.0,85873.0,0.1164487]
[1742455718928,0.00017464,85877.0,85876.0,0.1164446]
[1742455719123,0.00017464,85877.0,85876.0,0.8594046]
[1742455719334,0.00017464,85877.0,85876.0,0.9220046]
[1742455725426,0.00017464,85877.0,85876.0,2.4220046]
[1742455728341,0.00033464,85877.0,85876.0,2.4220046]
[1742455730138,0.00033464,85877.0,85876.0,2.0612046]
[1742455732643,0.00017464,85877.0,85876.0,2.0612046]
[1742455733237,0.00033464,85877.0,85876.0,2.0612046]
[1742455737838,0.00017464,85877.0,85876.0,2.0612046]
[1742455738235,0.00033464,85877.0,85876.0,2.0612046]
[1742455741152,0.00033464,85877.0,85876.0,1.9490446]
[1742455741440,0.00033464,85877.0,85876.0,1.7286046]
[1742455742941,0.00033464,85877.0,85876.0,1.7938046]
[1742455746235,0.00033464,85877.0,85876.0,1.6816446]
[1742455746440,0.00033464,85877.0,85876.0,1.7937646]
[1742455765564,0.00033464,85877.0,85876.0,1.6816446]
[1742455765767,0.00033464,85877.0,85876.0,1.7937646]
[1742455771262,0.00033464,85877.0,85876.0,1.6816446]
[1742455771568,0.00033464,85877.0,85876.0,1.7285646]
[1742455772157,0.00033464,85877.0,85876.0,1.93738226]
[1742455772967,0.00033464,85877.0,85876.0,0.50238226]
[1742455776067,0.00033464,85877.0,85876.0,0.2935646]
[1742455778362,0.00987682,85877.0,85876.0,0.2935646]
[1742455778562,0.11396342,85877.0,85876.0,0.2935646]
[1742455778871,0.10437682,85877.0,85876.0,0.2935646]
[1742455779074,0.11396343,85877.0,85876.0,0.2935646]
[1742455792285,0.08296343,85877.0,85876.0,0.5535646]
[1742455792784,0.07337682,85877.0,85876.0,0.5535646]
[1742455793776,0.06383464,85877.0,85876.0,0.5535646]
[1742455796487,0.07337622,85877.0,85876.0,0.5535646]
[1742455799902,0.07337622,85877.0,85876.0,2.0535646]
[1742455800599,4e-05,85878.0,85877.0,0.1164432]
[1742455800788,0.00959689,85878.0,85877.0,0.6564432]
[1742455800992,0.00959689,85878.0,85877.0,0.7183432]
[1742455801397,0.00959689,85878.0,85877.0,2.2183432]
[1742455802002,0.00959689,85878.0,85877.0,1.9583432]
[1742455802304,0.10589689,85878.0,85877.0,1.7904232]
[1742455802499,0.10589689,85878.0,85877.0,0.2904232]
[1742455802699,0.12225684,85878.0,85877.0,0.1783432]
[1742455802901,0.12225684,85878.0,85877.0,0.11208]
[1742455803104,0.23869874,85878.0,85877.0,0.2285232]
[1742455803509,0.23869874,85878.0,85877.0,0.09023289]
[1742455803706,0.25505995,85878.0,85877.0,0.09023289]
[1742455803901,0.1164473,85874.0,85873.0,0.11208]
[1742455804205,0.50320414,85874.0,85873.0,0.2285287]
[1742455804404,0.1164487,85873.0,85872.0,0.25196927]
[1742455804610,0.20620554,85873.0,85872.0,0.25196927]
[1742455804808,0.20846586,85873.0,85872.0,0.25196927]
[1742455805000,0.35846586,85873.0,85872.0,0.25196927]
[1742455805205,0.1164582,85866.0,85865.0,0.3477261]
[1742455805506,0.50547536,85866.0,85865.0,0.3477261]
[1742455805804,0.50547536,85866.0,85865.0,0.4641856]
[1742455806204,0.52183657,85866.0,85865.0,0.4641856]
[1742455806911,0.52066596,85866.0,85865.0,0.4641856]
[1742455807401,0.52066596,85866.0,85865.0,0.3477261]
[1742455807402,0.55246596,85866.0,85865.0,0.3477261]
[1742455807604,0.55246596,85866.0,85860.0,0.00017464]
[1742455807605,0.0582304,85864.0,85860.0,0.00017464]
[1742455807902,0.1164676,85859.0,85858.0,0.41727132]
[1742455808210,0.29351415,85859.0,85858.0,0.41727132]
[1742455808506,0.29351415,85859.0,85851.0,0.11576]
[1742455808507,0.1164771,85853.0,85852.0,0.1164764]
[1742455808703,0.50432365,85853.0,85852.0,0.1164764]
[1742455808910,0.54048465,85853.0,85849.0,0.01958345]
[1742455809210,0.0582398,85851.0,85850.0,0.1164797]
[1742455809416,0.08528635,85851.0,85850.0,0.1164797]
[1742455809600,0.14788635,85851.0,85850.0,0.1164797]
[1742455809913,0.16424756,85851.0,85850.0,0.1164797]
[1742455810300,0.10600776,85851.0,85850.0,0.1164797]
[1742455810795,0.08860419,85851.0,85850.0,0.1164797]
[1742455811000,0.08860419,85851.0,85850.0,0.1798797]
[1742455811203,0.08860419,85851.0,85850.0,1.6798797]
[1742455811204,0.07324298,85851.0,85850.0,1.6798797]
[1742455811614,0.18972148,85851.0,85850.0,1.6798797]
[1742455811905,0.18972148,85851.0,85850.0,1.6164797]
[1742455812613,0.18972148,85851.0,85850.0,1.5]
[1742455812812,0.18972148,85851.0,85850.0,1.6164799]
[1742455812813,0.26259731,85851.0,85850.0,1.6164799]
[1742455813015,0.27255998,85851.0,85850.0,1.6164799]
[1742455813395,0.27255998,85851.0,85849.0,0.13685376]
[1742455813396,0.1164799,85850.0,85849.0,0.13685376]
[1742455813705,0.14236756,85850.0,85849.0,0.13685376]
[1742455813904,0.23207809,85850.0,85849.0,0.13685376]
[1742455814504,0.23207809,85850.0,85849.0,0.25333496]
[1742455814707,0.23307809,85850.0,85849.0,0.25333496]
[1742455815306,0.23307809,85850.0,85849.0,0.13685376]
[1742455815906,0.23307809,85850.0,85845.0,0.1219429]
[1742455815907,0.1164866,85846.0,85845.0,0.1164839]
[1742455816106,0.14237426,85846.0,85845.0,0.1164839]
[1742455816409,0.23348479,85846.0,85845.0,0.1164839]
[1742455816711,0.23348479,85846.0,85845.0,0.13674036]
[1742455817113,0.11799819,85846.0,85845.0,0.20254036]
[1742455817804,0.10275351,85846.0,85845.0,0.20254036]
[1742455818204,0.21923881,85846.0,85845.0,0.20254036]
[1742455818907,0.20279095,85846.0,85845.0,0.20254036]
[1742455820509,0.20279095,85846.0,85845.0,0.02025646]
[1742455820807,0.20279095,85846.0,85844.0,0.00017464]
[1742455820808,0.1164866,85845.0,85844.0,0.00017464]
[1742455821013,0.55092958,85845.0,85844.0,0.00017464]
[1742455821599,0.57698694,85845.0,85844.0,0.00017464]
[1742455821810,0.59320094,85845.0,85844.0,0.00017464]
[1742455822515,0.59420094,85845.0,85844.0,0.00017464]
[1742455823210,0.59420094,85845.0,85844.0,0.13468323]
[1742455823906,0.59520094,85845.0,85844.0,0.13468323]
[1742455824307,0.59520094,85845.0,85844.0,0.16648323]
[1742455824515,0.59520094,85845.0,85844.0,0.13468323]
[1742455825517,0.59520094,85845.0,85844.0,0.16648323]
[1742455825715,0.59520094,85845.0,85844.0,0.19788323]
[1742455825914,0.57898694,85845.0,85844.0,0.19788323]
[1742455828018,0.70190073,85845.0,85844.0,0.19788323]
[1742455831319,0.56289225,85845.0,85844.0,0.19788323]
[1742455833826,0.56289225,85845.0,85844.0,0.08139523]
[1742455835519,0.61953291,85845.0,85844.0,0.19788323]
[1742455835723,0.61953291,85845.0,85844.0,0.08139523]
[1742455836029,0.61953291,85845.0,85844.0,0.19788323]
[1742455837729,0.4391202,85845.0,85844.0,0.19788323]
[1742455838130,0.5556068,85845.0,85844.0,0.19788323]
[1742455838335,0.4391202,85845.0,85844.0,1.69788323]
[1742455839935,0.42940333,85845.0,85844.0,1.69788323]
[1742455840926,0.06860333,85845.0,85844.0,1.69788323]
[1742455841536,0.3608,85852.0,85851.0,0.1164785]
[1742455841727,0.3608,85852.0,85851.0,0.2347585]
[1742455841923,0.3608,85852.0,85851.0,0.3324585]
[1742455843542,0.3618,85852.0,85851.0,0.3334585]
[1742455844333,0.3618,85852.0,85851.0,0.21798]
[1742455844334,0.4782771,85852.0,85851.0,0.21798]
[1742455844539,0.4782771,85852.0,85851.0,0.3344585]
[1742455844836,0.48796743,85852.0,85851.0,0.3020585]
[1742455845340,0.52116743,85852.0,85851.0,0.3020585]
[1742455845530,0.52116743,85852.0,85851.0,1.8020585]
[1742455846043,0.16036743,85852.0,85851.0,1.8020585]
[1742455846237,0.16036743,85852.0,85851.0,1.68558]
[1742455846542,0.16036743,85852.0,85851.0,1.8020585]
[1742455847942,0.16036743,85852.0,85851.0,0.3020585]
[1742455848141,0.04389033,85852.0,85851.0,0.3020585]
[1742455848442,0.16036743,85852.0,85851.0,0.3020585]
[1742455848941,0.1506771,85852.0,85851.0,0.3020585]
[1742455852946,0.16027539,85852.0,85851.0,0.3020585]
[1742455853240,0.19057539,85852.0,85851.0,0.3020585]
[1742455853836,0.20017167,85852.0,85851.0,1.8020585]
[1742455855743,0.08369457,85852.0,85851.0,1.8020585]
[1742455857239,0.02019457,85852.0,85851.0,1.8020585]
[1742455859039,0.08439457,85852.0,85851.0,1.8020585]
[1742455859240,0.14102641,85852.0,85851.0,1.8020585]
[1742455860550,0.25750351,85852.0,85851.0,1.8012985]
[1742455861147,0.27880522,85852.0,85851.0,1.8012985]
[1742455861447,0.27880522,85852.0,85851.0,0.002]
[1742455861838,0.27880522,85852.0,85851.0,0.1184785]
[1742455862048,0.27880522,85852.0,85851.0,0.002]
[1742455862349,0.27880522,85852.0,85851.0,0.1184785]
[1742455862743,0.27880522,85852.0,85851.0,0.1517785]
[1742455863051,0.27880522,85852.0,85851.0,0.002]
[1742455863242,0.27880522,85852.0,85851.0,0.1184785]
[1742455864153,0.27880522,85852.0,85851.0,0.1501785]
[1742455865238,0.28840459,85852.0,85851.0,0.1501785]
[1742455866158,0.28840459,85852.0,85851.0,0.1819785]
[1742455866953,0.28840459,85852.0,85851.0,0.0655]
[1742455868349,0.28840459,85852.0,85851.0,0.1819785]
[1742455869756,0.43986222,85852.0,85851.0,0.0655]
[1742455870146,0.43986222,85852.0,85851.0,0.1819785]
[1742455871757,0.43984411,85852.0,85851.0,0.1819785]
[1742455872263,0.43026285,85852.0,85851.0,0.0655]
[1742455872559,0.0582416,85848.0,85844.0,0.01823523]
[1742455872744,0.4772866,85845.0,85844.0,0.01819523]
[1742455873248,0.4967206,85845.0,85844.0,0.01819523]
[1742455873447,0.49672059,85845.0,85844.0,0.13468323]
[1742455873659,0.49672059,85845.0,85844.0,0.01819523]
[1742455873858,0.49772059,85845.0,85844.0,0.05009523]
[1742455874053,0.49772059,85845.0,85844.0,0.05109523]
[1742455874261,0.56042059,85845.0,85844.0,0.05109523]
[1742455874461,0.55942059,85845.0,85844.0,0.05009523]
[1742455874658,0.56042059,85845.0,85844.0,0.05109523]
[1742455874854,0.56042059,85845.0,85844.0,0.08419523]
[1742455875054,0.56042059,85845.0,85844.0,0.20068323]
[1742455875647,0.44393399,85845.0,85844.0,0.20068323]
[1742455875853,0.4440493,85845.0,85844.0,0.20068323]
[1742455876259,0.3813493,85845.0,85844.0,0.20068323]
[1742455876462,0.0205493,85845.0,85844.0,0.19968323]
[1742455876655,0.56888947,85852.0,85851.0,0.1164785]
[1742455876860,0.37057958,85852.0,85851.0,0.2336385]
[1742455877158,0.27800531,85856.0,85855.0,0.1164731]
[1742455878060,0.27800531,85856.0,85855.0,0.1479731]
[1742455878655,0.39447701,85856.0,85855.0,0.1479731]
[1742455878851,0.27800531,85856.0,85855.0,0.1479731]
[1742455879763,0.27800531,85856.0,85855.0,0.1489731]
[1742455879961,0.05663011,85857.0,85856.0,0.1164717]
[1742455880147,0.05663011,85857.0,85856.0,0.1789717]
[1742455880553,0.00017464,85861.0,85860.0,0.1164663]
[1742455880758,0.00017464,85861.0,85860.0,0.2338663]
[1742455880957,0.3608,85864.0,85863.0,0.1164622]
[1742455881458,0.2210564,85871.0,85870.0,0.1164527]
[1742455881659,0.2210564,85871.0,85870.0,0.5946127]
[1742455882258,0.2210564,85871.0,85870.0,0.6583127]
[1742455882553,0.27800531,85877.0,85876.0,0.1164446]
[1742455883162,4e-05,85884.0,85882.0,0.1164365]
[1742455883363,4e-05,85884.0,85882.0,0.2337165]
[1742455884065,0.14249069,85890.0,85888.0,0.1164283]
[1742455884265,0.14249069,85890.0,85889.0,0.298527]
[1742455885865,0.17369069,85890.0,85889.0,0.298527]
[1742455886362,0.17369069,85890.0,85889.0,0.30719539]
[1742455886557,0.17869069,85890.0,85889.0,0.30719539]
[1742455887558,0.18369069,85890.0,85889.0,0.30719539]
[1742455887759,0.21379069,85890.0,85889.0,0.30719539]
[1742455888360,0.0713,85890.0,85889.0,0.30719539]
[1742455889573,0.1877256,85890.0,85889.0,0.30719539]
[1742455889973,0.1877256,85890.0,85889.0,0.19076839]
[1742455890181,0.19717724,85890.0,85889.0,0.30719539]
[1742455890472,0.19717724,85890.0,85889.0,0.18999539]
[1742455890473,0.20673901,85890.0,85889.0,0.18999539]
[1742455890765,0.56753901,85890.0,85889.0,0.19056839]
[1742455891773,0.45111341,85890.0,85889.0,0.30699539]
[1742455892365,0.4321,85890.0,85889.0,0.30699539]
[1742455893073,0.3708,85890.0,85889.0,0.30699539]
[1742455893462,0.4036,85890.0,85889.0,0.30699539]
[1742455893659,0.434,85890.0,85889.0,0.30699539]
[1742455897670,0.0732,85890.0,85889.0,0.30699539]
[1742455899984,0.01,85890.0,85889.0,0.30699539]
[1742455900773,0.0301,85895.0,85892.0,0.0582114]
[1742455900981,0.0329,85894.0,85893.0,0.0972]
[1742455901177,4e-05,85896.0,85893.0,0.1554107]
[1742455901378,4e-05,85896.0,85895.0,0.1164188]
[1742455902082,4e-05,85896.0,85895.0,0.1818188]
[1742455903980,0.00304,85896.0,85895.0,0.1818188]
[1742455904578,0.00404,85896.0,85895.0,0.1818188]
[1742455904781,0.06823736,85905.0,85903.0,0.116408]
[1742455904988,0.06823736,85905.0,85904.0,0.6916866]
[1742455905387,0.06827736,85905.0,85904.0,0.6916866]
[1742455905683,4e-05,85905.0,85904.0,2.1916866]
[1742455905987,0.12897736,85910.0,85909.0,0.1163999]
[1742455906886,0.12897736,85910.0,85909.0,0.1784999]
[1742455907280,0.13397736,85910.0,85909.0,0.1784999]
[1742455908599,0.06574,85910.0,85909.0,0.1784999]
[1742455910189,0.06574,85910.0,85909.0,0.2963799]
[1742455919892,0.00504,85910.0,85909.0,0.2963799]
[1742455923891,0.005,85910.0,85909.0,0.2963799]
[1742455925890,0.005,85910.0,85909.0,1.7963799]
[1742455935205,0.0675,85910.0,85909.0,1.7963799]
[1742455955415,0.05915775,85910.0,85909.0,1.7963799]
[1742455961226,0.05915775,85910.0,85904.0,0.57082689]
[1742455961423,0.1164039,85907.0,85906.0,0.1164026]
[1742455961620,0.1164005,85909.0,85908.0,0.1163999]
[1742455961822,0.0308,85910.0,85909.0,0.1163999]
[1742455962023,0.1471985,85910.0,85909.0,0.1163999]
[1742455962218,0.0308,85910.0,85909.0,0.1163999]
[1742455963632,0.0308,85910.0,85909.0,0.1777999]
[1742455964635,0.0308,85910.0,85909.0,0.1163999]
[1742455964821,0.1471985,85910.0,85909.0,0.1163999]
[1742455966122,0.0308,85910.0,85909.0,0.1163999]
[1742455967631,0.1471985,85910.0,85909.0,0.1163999]
[1742455968024,0.1471985,85910.0,85908.0,0.1776999]
[1742455968025,0.1164039,85906.0,85905.0,0.11536]
[1742455968334,0.1164039,85906.0,85905.0,0.2317653]
[1742455968521,0.1492039,85906.0,85905.0,0.2317653]
[1742455968929,0.058203,85905.0,85901.0,0.05837924]
[1742455969135,0.1164093,85902.0,85901.0,0.11658364]
[1742455969430,0.1164093,85902.0,85901.0,0.23174364]
[1742455969641,0.0633,85903.0,85902.0,0.1164093]
[1742455969936,0.179708,85903.0,85902.0,0.1164093]
[1742455973622,0.1164093,85902.0,85901.0,0.11533464]
[1742455973821,0.1164093,85902.0,85901.0,0.115]
[1742455974131,0.1164093,85902.0,85901.0,0.1164107]
[1742455974337,0.1470093,85902.0,85901.0,0.1164107]
[1742455975127,0.1776093,85902.0,85901.0,0.1164107]
[1742455975327,0.1776093,85902.0,85901.0,0.1496107]
[1742455975947,0.1776093,85902.0,85901.0,0.1164107]
[1742455976130,0.1776093,85902.0,85901.0,0.1495107]
[1742455976438,0.1776093,85902.0,85901.0,0.1164107]
[1742455978538,0.1776093,85902.0,85901.0,0.1816107]
[1742455978744,0.35203027,85902.0,85901.0,0.1816107]
[1742455979542,0.35203027,85902.0,85901.0,0.1164107]
[1742455980334,0.35203027,85902.0,85901.0,0.1483107]
[1742455981441,0.35203027,85902.0,85901.0,0.1794107]
[1742455982132,0.1776093,85902.0,85901.0,0.1794107]
[1742455988342,0.0612,85902.0,85901.0,0.1794107]
[1742455991434,0.0306,85902.0,85901.0,0.1794107]
[1742455991945,0.0608,85902.0,85901.0,0.1794107]
[1742455993040,4e-05,85903.0,85902.0,0.1164093]
[1742455993437,4e-05,85903.0,85902.0,0.1803093]
[1742455993847,0.20682097,85904.0,85903.0,0.116408]
[1742455994145,0.17446097,85904.0,85903.0,0.116408]
[1742455994345,0.17446097,85904.0,85903.0,0.179708]
[1742455999740,4e-05,85904.0,85903.0,0.179708]
[1742456003151,0.1164466,85904.0,85903.0,0.179708]
[1742456003450,0.1479466,85904.0,85903.0,0.179708]
[1742456003641,0.03154,85904.0,85903.0,0.179708]
[1742456004350,0.1479466,85904.0,85903.0,0.179708]
[1742456005145,0.03154,85904.0,85903.0,0.179708]
[1742456008350,4e-05,85904.0,85903.0,0.179708]
[1742456008852,0.0321,85906.0,85905.0,0.1164053]
[1742456009253,0.0321,85906.0,85905.0,0.1816053]
[1742456012050,0.064,85906.0,85905.0,0.1816053]
[1742456012868,4e-05,85907.0,85906.0,0.1164039]
[1742456013364,4e-05,85910.0,85909.0,0.1163999]
[1742456013560,4e-05,85910.0,85909.0,0.2300399]
[1742456013766,0.56965318,85912.0,85911.0,0.1163972]
[1742456013959,0.60185317,85912.0,85911.0,0.1163972]
[1742456014155,0.63485317,85912.0,85911.0,0.1793972]
[1742456015159,0.27405317,85912.0,85911.0,0.1793972]
[1742456016360,0.27405317,85912.0,85911.0,0.19461866]
[1742456017550,0.20825317,85912.0,85911.0,0.19461866]
[1742456017755,0.0319,85912.0,85911.0,0.19461866]
[1742456021067,0.17139408,85912.0,85911.0,0.19461866]
[1742456021771,0.20449408,85912.0,85911.0,0.19461866]
[1742456021965,0.20449408,85912.0,85911.0,1.69461866]
[1742456022364,0.20449408,85912.0,85911.0,0.19461866]
[1742456022574,0.68168988,85912.0,85911.0,0.19461866]
[1742456022762,0.20449408,85912.0,85911.0,0.16431866]
[1742456023164,0.23709408,85912.0,85911.0,0.19691866]
[1742456023965,0.0976,85912.0,85911.0,0.19691866]
[1742456026166,0.2139958,85912.0,85911.0,0.19691866]
[1742456027058,0.5747958,85912.0,85911.0,0.19691866]
[1742456028777,0.5747958,85912.0,85911.0,0.24481866]
[1742456029575,0.5747958,85912.0,85911.0,0.30551866]
[1742456033274,0.5747958,85912.0,85911.0,0.29951866]
[1742456035583,0.2139958,85912.0,85911.0,0.29951866]
[1742456035883,0.5747958,85912.0,85911.0,0.29951866]
[1742456038293,0.5416958,85912.0,85911.0,0.29951866]
[1742456042478,0.5416958,85912.0,85911.0,0.18631866]
[1742456045487,0.1808958,85912.0,85911.0,0.18631866]
[1742456045682,0.5416958,85912.0,85911.0,0.18631866]
[1742456051191,0.74994897,85912.0,85911.0,0.18631866]
[1742456052592,0.38914897,85912.0,85911.0,0.18631866]
[1742456054379,0.1808958,85912.0,85911.0,0.18631866]
[1742456057390,0.38914897,85912.0,85911.0,0.18631866]
[1742456060811,0.1808958,85912.0,85911.0,0.18631866]
[1742456061109,0.1164039,85906.0,85905.0,0.00128]
[1742456061286,0.1746072,85906.0,85905.0,0.1164053]
[1742456061484,0.116408,85903.0,85902.0,0.2056086]
[1742456061888,0.146908,85903.0,85902.0,0.22027487]
[1742456062585,0.177308,85903.0,85902.0,0.22027487]
[1742456065081,0.177308,85903.0,85902.0,0.10386957]
[1742456065285,0.177308,85903.0,85902.0,0.04566627]
[1742456065793,0.177308,85903.0,85902.0,0.16207557]
[1742456066187,0.177308,85903.0,85902.0,0.19327557]
[1742456067590,0.177308,85903.0,85902.0,1.69327557]
[1742456076001,0.35167651,85903.0,85902.0,1.69327557]
[1742456076999,0.20486851,85903.0,85902.0,1.72487557]
[1742456077200,0.17436851,85903.0,85902.0,1.72487557]
[1742456079404,4e-05,85904.0,85903.0,0.116408]
[1742456079604,4e-05,85904.0,85903.0,0.541908]
[1742456080406,4e-05,85908.0,85907.0,0.1164026]
[1742456080602,4e-05,85908.0,85907.0,0.4893626]
[1742456080803,0.17436851,85912.0,85911.0,0.1163972]